Cogmind - Beta 13 @@@ ROGUE MODE // 2024.04.15 @ 11:02:03 Player: Kate+Gabe4evr Result: Destroyed by Y-45 Defender with Beam Rifle Performance ------------- Evolutions (2) 1000 Regions Visited (4) 800 Robots Destroyed (67) 335 Value Destroyed (2370) 2370 Prototype IDs (2) 40 Alien Tech Used (0) 0 Bonus (1487) 1487 TOTAL SCORE: 6032 Bonus ------- High Alert Combat Kills 287 Entered Garrisons 200 Used RIF Installer 1000 Cogmind --------- Core Integrity 0/550 Matter 290/300 Energy 99/100 System Corruption 9% Temperature Cool (9) Movement Core (200) Ox3 Location -8/Garrison Parts ------- > --- POWER (1) -------- (None) > --- PROPULSION (5) --- (None) > --- UTILITY (3) ------ Medium Storage Unit > --- WEAPON (2) ------- (None) > --- INVENTORY (10) --- Improved Heat Sink Peak State ------------ > --- POWER ------------ Improved Ion Engine > --- PROPULSION ------- Aluminum Leg Aluminum Leg Aluminum Leg Aluminum Leg > --- UTILITY ---------- Small Storage Unit Recoil Stabilizer > --- WEAPON ----------- Heavy EM Shotgun Improved Medium Laser > --- INVENTORY -------- Aluminum Leg Shock Rifle Shock Rifle Shock Rifle Medium Laser Medium Laser Assault Rifle Heavy Assault Rifle [Rating: 18] Favorites ----------- Power Improved Ion Engine Engine Improved Ion Engine Power Core Light Nuclear Core Propulsion Aluminum Leg Treads Light Treads Leg Aluminum Leg Utility Medium Storage Unit Device Improved Heat Sink Storage Medium Storage Unit Protection Hardened Medium Armor Plating Weapon Heavy Assault Rifle Energy Gun Heavy EM Shotgun Ballistic Gun Heavy Assault Rifle Launcher Rocket Launcher Build | -11 -10 -9 -8 -8 ------- Run | Yrd Mat Mat Mat Gar Slots Evolved 4 | . . 2 2 . Power . | . . . . . Propulsion 3 | . . 2 1 . Utility 1 | . . . 1 . Weapon . | . . . . . Parts Attached 50 | 6 2 16 1 25 Power 9 | 1 . 3 . 5 Engine 5 | 1 . 3 . 1 Core 4 | . . . . 4 Reactor . | . . . . . Propulsion 15 | 2 1 7 . 5 Treads 1 | . . . . 1 Leg 14 | 2 1 7 . 4 Wheel . | . . . . . Hover . | . . . . . Flight . | . . . . . Utility 8 | 1 . 1 1 5 Device 3 | . . 1 . 2 Storage 2 | 1 . . 1 . Processor . | . . . . . Hackware . | . . . . . Protection 3 | . . . . 3 Artifact . | . . . . . Weapon 18 | 2 1 5 . 10 Energy Gun 12 | 1 1 3 . 7 Energy Cannon . | . . . . . Ballistic Gun 5 | 1 . 2 . 2 Ballistic Cannon . | . . . . . Launcher 1 | . . . . 1 Special Weapon . | . . . . . Impact Weapon . | . . . . . Slashing Weapon . | . . . . . Piercing Weapon . | . . . . . Special Melee Weapon . | . . . . . Unidentified Prototypes 2 | . . 2 . . Corrupted Parts 2 | . . 1 . 1 System Corruption 10 | . . 3 . 7 Parts Lost 32 | . . 4 . 28 Power 7 | . . 2 . 5 Propulsion 10 | . . 1 . 9 Utility 5 | . . 1 . 4 Weapon 10 | . . . . 10 Highest Loss Streak 8 | . . 2 . 8 To Critical Strikes 1 | . . 1 . . Average Slot Usage (%) 74 | . 85 93 72 60 Engine 5 | . 14 10 9 2 Core 2 | . . . . 4 Leg 26 | . 28 42 36 14 Device 6 | . . 6 . 7 Storage 10 | . 14 11 9 9 Protection 3 | . . . . 6 Energy Gun 11 | . 14 11 9 10 Ballistic Gun 6 | . 14 11 9 2 Naked Turns . | . . . . . Heaviest Build 30 | 13 14 20 24 30 Greatest Support 40 | 20 20 40 40 40 Greatest Overweight (x) 8 | . . . . 8 Average Overweight (x) . | . . . . 1 Largest Inventory Capacity 10 | 8 8 8 10 10 Average Capacity 9 | 6 8 8 9 10 Most Carried 9 | 1 6 8 9 8 Average Carried 4 | . 2 7 8 2 Final Capacity 10 | 8 8 8 10 10 Final Carried 8 | 1 6 8 8 1 Class Distribution -------------------- 56% | Mutant 43% | Scavenger-Mutant Dominant Class ---------------- Mutant | -10/Materials Mutant | -9/Materials Mutant | -8/Materials Scavenger-Mutant | -8/Garrison Resources | -11 -10 -9 -8 -8 ----------- Run | Yrd Mat Mat Mat Gar Matter Collected 1174 | 246 39 382 . 507 Remotely . | . . . . . Salvage Created 2232 | . 196 1071 . 965 Parts 142 | . 11 93 . 38 Haulers Intercepted 3 | . 1 2 . . Recyclers Shooed 1 | . . 1 . . Parts Field Recycled . | . . . . . Retrieved Matter . | . . . . . Parts Self-Destructed . | . . . . . Prevented . | . . . . . Kills | -11 -10 -9 -8 -8 ------- Run | Yrd Mat Mat Mat Gar Combat Hostiles Destroyed 63 | . 5 27 . 31 Guns 49 | . 5 25 . 19 AOE 13 | . . 2 . 11 Classes Destroyed 6 | . 3 2 . 1 Hauler 3 | . 1 2 . . Recycler 1 | . . 1 . . Swarmer 31 | . 2 15 . 14 Grunt 17 | . 3 5 . 9 Sentry 12 | . . 7 . 5 Programmer 3 | . . . . 3 Best Kill Streak 6 | . 2 4 . 6 Combat Bots Only 6 | . 2 4 . 6 Max Kills in Single Turn 3 | . 1 2 . 3 Gunslinging . | . . . . . Exploded 3 | . . 2 . 3 Melee . | . . . . . Uniques/NPCs Destroyed . | . . . . . Combat | -11 -10 -9 -8 -8 -------- Run | Yrd Mat Mat Mat Gar Hostile Shots Fired 410 | . 30 120 . 260 Missed 101 | . 11 26 . 64 Damage Taken 4149 | . 183 1105 . 2861 Core 867 | . 22 285 . 560 Absorbed by Shields . | . . . . . Core Remaining (%) 73 | 100 91 28 . . Volleys Fired 208 | . 25 66 . 117 Largest 2 | . 2 2 . 2 Hottest 115 | . 70 73 . 115 Shots Fired 350 | . 50 127 . 173 Gun 340 | . 50 127 . 163 Cannon . | . . . . . Launcher 10 | . . . . 10 Special . | . . . . . Kinetic 119 | . 25 65 . 29 Thermal 116 | . 25 . . 91 Explosive 10 | . . . . 10 Electromagnetic 105 | . . 62 . 43 Robot Hit Streak 17 | . 6 17 . 11 Robot Miss Streak 5 | . 4 5 . 4 Penetration Max . | . . . . . Secondary Targets 8 | . . 4 . 4 Max Gunslinging Chain 1 | . . 1 . 1 Shots Hit Robots 206 | . 30 82 . 94 Core Hits 101 | . 10 42 . 49 Critical Kills . | . . . . . Critical Parts Destroyed . | . . . . . Critical Strikes 13 | . 2 . . 11 Burn 13 | . 2 . . 11 Melee Attacks . | . . . . . Impact . | . . . . . Slashing . | . . . . . Piercing . | . . . . . Sneak Attacks . | . . . . . Combat Hostiles . | . . . . . Follow-up Attacks . | . . . . . Damage Inflicted 3993 | . 354 1424 . 2215 Guns 3020 | . 351 1288 . 1381 Cannons . | . . . . . Explosions 956 | . . 134 . 822 Melee . | . . . . . Ramming 17 | . 3 2 . 12 Kinetic 738 | . 201 441 . 96 Thermal 1303 | . 150 134 . 1019 Explosive 639 | . . . . 639 Electromagnetic 1296 | . . 847 . 449 Impact . | . . . . . Slashing . | . . . . . Piercing . | . . . . . Highest Corruption 9 | . 1 5 . 9 Average Corruption 6 | . 1 3 . 8 Corruption Purged . | . . . . . Corruption Blocked . | . . . . . Effects 70 | . . 18 . 52 Message Errors 15 | . . 3 . 12 Matter Fused 19 | . . 5 . 14 Heat Flow Errors 9 | . . 3 . 6 Energy Discharges 7 | . . 2 . 5 Parts Rejected 3 | . . 1 . 2 Parts Fused 2 | . . . . 2 Data Loss (minor) 5 | . . 2 . 3 Data Loss (major) 3 | . . . . 3 Misfires 2 | . . . . 2 Alerts 2 | . . 1 . 1 Weapon Failures 3 | . . 1 . 2 Overload Shots . | . . . . . Overflow Damage 19 | . . . . 19 Projectiles . | . . . . . Explosions 19 | . . . . 19 Melee . | . . . . . Knockbacks . | . . . . . Impact . | . . . . . Kinetic . | . . . . . Secondary . | . . . . . Self-Inflicted Damage 268 | . . 46 . 222 Shots 7 | . . 1 . 6 Rammed 1 | . . . . 1 Targets Rammed 9 | . 1 1 . 7 Kicked 8 | . 1 1 . 6 Crushed . | . . . . . Highest Temperature 271 | . 105 265 . 271 Average Temperature 42 | . 45 40 . 44 Received Heat Transfer 1149 | . 60 225 . 864 Siege Activations . | . . . . . Robots Corrupted . | . . . . . Combat Hostiles . | . . . . . Parts Fried 5 | . . 2 . 3 Impact Corruptions . | . . . . . Robots Melted 1 | . . . . 1 Combat Hostiles 1 | . . . . 1 Parts Melted 10 | . 1 . . 9 Heat Transferred 3705 | . 545 100 . 3060 Parts Sabotaged . | . . . . . Parts Stolen . | . . . . . Parts Stripped . | . . . . . Power Chain Reactions 3 | . . 2 . 1 Alert | -11 -10 -9 -8 -8 ------- Run | Yrd Mat Mat Mat Gar Peak Influence 1101 | . 172 548 246 1101 Initial 231 | . . 72 231 159 Average 499 | . 94 291 235 717 Maximum Alert Level 4 | . . 2 1 4 Low Security (%) 23 | 100 100 34 . 2 Level 1 23 | . . 41 100 13 Level 2 20 | . . 24 . 22 Level 3 32 | . . . . 60 Level 4 . | . . . . . Level 5 . | . . . . . High Security . | . . . . . Max Security . | . . . . . Squads Dispatched 3 | . 2 1 . . Investigation 2 | . 1 1 . . Extermination . | . . . . . Reinforcement 1 | . 1 . . . Assault . | . . . . . Garrison . | . . . . . Intercept . | . . . . . Searches Triggered . | . . . . . Construction Impeded . | . . . . . Haulers Reinforced . | . . . . . Active Scanning Responses . | . . . . . Cargo Convoy Interrupts . | . . . . . Stealth | -11 -10 -9 -8 -8 --------- Run | Yrd Mat Mat Mat Gar Distress Signals 2 | . 1 1 . . Communications Jammed . | . . . . . Distress Signals . | . . . . . Times Spotted 79 | . 8 35 1 35 Peak Tracking Total 7 | . 3 7 1 6 Tactical Retreats 4 | . 1 2 . 1 Traps | -11 -10 -9 -8 -8 ------- Run | Yrd Mat Mat Mat Gar Traps Triggered 10 | . 2 1 . 7 Indirectly . | . . . . . Trap Hack Attempts . | . . . . . Triggered . | . . . . . Disarmed . | . . . . . Reprogrammed . | . . . . . Reused . | . . . . . Traps Extracted . | . . . . . Installed . | . . . . . Triggered . | . . . . . Machines | -11 -10 -9 -8 -8 ---------- Run | Yrd Mat Mat Mat Gar Machines Disabled 6 | . . 2 . 4 Max in Single Turn 1 | . . 1 . 1 Garrison Relay 2 | . . . . 2 Phase Generator 1 | . . . . 1 Machines Repaired . | . . . . . Machines Dismantled . | . . . . . Machines Sabotaged . | . . . . . Overloaded Fab Kills . | . . . . . Hacking | -11 -10 -9 -8 -8 --------- Run | Yrd Mat Mat Mat Gar Machines Accessed 6 | . . 3 1 2 Terminals 5 | . . 3 . 2 Fabricators . | . . . . . Repair Stations . | . . . . . Recycling Units . | . . . . . Scanalyzers . | . . . . . Garrison Access 1 | . . . 1 . Total Hacks 11 | . . 8 1 2 Successful 6 | . . 3 1 2 Failed 5 | . . 5 . . Catastrophic 2 | . . 2 . . Database Lockouts . | . . . . . Manual 2 | . . 2 . . Terminals 10 | . . 8 . 2 Fabricators . | . . . . . Repair Stations . | . . . . . Recycling Units . | . . . . . Scanalyzers . | . . . . . Garrison Access 1 | . . . 1 . Terminal Hacks 5 | . . 3 . 2 Record 2 | . . 2 . . Emergency Access Points 1 | . . . . 1 Dispatch Records 1 | . . 1 . . Patrol Navigation 1 | . . . . 1 Fabricator Hacks . | . . . . . Repair Station Hacks . | . . . . . Recycling Unit Hacks . | . . . . . Scanalyzer . | . . . . . Garrison Access Hacks 1 | . . . 1 . Unlock Access 1 | . . . 1 . Unauthorized Hacks . | . . . . . Terminals . | . . . . . Fabricators . | . . . . . Repair Stations . | . . . . . Recycling Units . | . . . . . Scanalyzers . | . . . . . Garrison Access . | . . . . . Data Cores Recovered . | . . . . . Used . | . . . . . Hacking Detections 2 | . . 2 . . Full Trace Events 1 | . . 1 . . Feedback Events . | . . . . . Feedback Blocked . | . . . . . Robot Schematics Acquired . | . . . . . Robots Built . | . . . . . Authchips . | . . . . . Time . | . . . . . Total Robot Build Rating . | . . . . . Part Schematics Acquired . | . . . . . Parts Built . | . . . . . Authchips . | . . . . . Time . | . . . . . Total Part Build Rating . | . . . . . Parts Repaired . | . . . . . Time . | . . . . . Parts Recycled . | . . . . . Recycled Matter . | . . . . . Retrieved Matter . | . . . . . Retrieved Components . | . . . . . Parts Scanalyzed . | . . . . . Part Schematics Acquired . | . . . . . Parts Damaged . | . . . . . Bothacking | -11 -10 -9 -8 -8 ------------ Run | Yrd Mat Mat Mat Gar Used RIF Installer 2 | . . . . 2 Watcher Feeds 1 | . . . . 1 Robots Hacked . | . . . . . Non-combat . | . . . . . Combat . | . . . . . Robot Hacks Applied . | . . . . . Relay Couplers Released 8 | . . . . 8 Machine Destruction 8 | . . . . 8 Fabnet Peak Effective % . | . . . . . Robots Rewired . | . . . . . Allies Hacked . | . . . . . Hacks Repelled . | . . . . . Allies | -11 -10 -9 -8 -8 -------- Run | Yrd Mat Mat Mat Gar Total Allies . | . . . . . Largest Group . | . . . . . Highest-Rated Group . | . . . . . Highest-Rated Ally . | . . . . . Total Orders . | . . . . . Ally Attacks . | . . . . . Total Damage . | . . . . . Kills . | . . . . . Allies Corrupted . | . . . . . Allies Melted . | . . . . . Intel | -11 -10 -9 -8 -8 ------- Run | Yrd Mat Mat Mat Gar Robot Analysis Total . | . . . . . Derelict Logs Recovered . | . . . . . Drone Launches . | . . . . . Drone Recoveries . | . . . . . Exploration | -11 -10 -9 -8 -8 ------------- Run | Yrd Mat Mat Mat Gar Turns Passed 2969 | 69 207 1057 37 1599 Spaces Moved 1426 | 66 97 605 29 629 Core 63 | 28 . . . 35 Treads 30 | . . . . 30 Legs 1333 | 38 97 605 29 564 Wheels . | . . . . . Hover . | . . . . . Flight . | . . . . . Fastest Speed 50 | 50 120 120 120 120 Average Speed 150 | 90 120 120 120 192 Slowest Speed 450 | 120 120 120 120 450 Overloaded Moves . | . . . . . Propulsion Burnouts . | . . . . . Robots Hopped . | . . . . . Cave-ins Triggered . | . . . . . Exploration Rate (%) 34 | 5 30 59 4 75 Regions Visited 4 Branch Regions . Pre-discovered Areas . | . . . . . Known Exits Taken 1 | . . . 1 . Unknown Exits Taken 3 | 1 1 1 . . Scrap Searched . | . . . . . Spaces Dug . | . . . . . Terrain Destroyed 147 | . . 9 . 138 Melee . | . . . . . Projectile . | . . . . . AOE 147 | . . 9 . 138 Terrain Rammed . | . . . . . Walls Destroyed . | . . . . . Machines Disabled . | . . . . . Actions | -11 -10 -9 -8 -8 --------- Run | Yrd Mat Mat Mat Gar Total 1873 | 72 136 808 31 826 Wait 141 | . 9 107 . 25 Move 1422 | 65 96 604 28 629 Hop . | . . . . . Pick Up 13 | 1 3 7 . 2 Fast Attach 23 | 6 . 3 1 13 Attach 15 | . . 5 . 10 Detach 1 | . . . 1 . Swap 12 | . 2 8 . 2 Drop 8 | . . 7 1 . Fire 208 | . 25 66 . 117 Melee . | . . . . . Ram 1 | . . . . 1 Kick 8 | . 1 1 . 6 Crush . | . . . . . Escape Stasis 20 | . . . . 20 Rewire 1 | . . . . 1 Trap . | . . . . . Miscellaneous . | . . . . . Route ------- -11/Scrapyard -10/Materials -9/Materials -8/Materials -8/Garrison (discovered 2 exits: [*Mat x2]) History --------- Turn | Location | Event 7 | -11/Scrapyard | Discovered new exit (range 15) 70 | -11/Scrapyard | Entered Materials 224 | -10/Materials | Discovered new exit (range 16) 277 | -10/Materials | Entered another Materials area 277 | -9/Materials | Evolved 2 slots: Propulsion x2 326 | -9/Materials | Build established: Mutant 1107 | -9/Materials | Core integrity fell below 50% 1325 | -9/Materials | Discovered new exit (range 8) 1334 | -9/Materials | Entered another Materials area 1334 | -8/Materials | Evolved 2 slots: Propulsion x1, Utility x1 1369 | -8/Materials | Identified exit to Garrison 1371 | -8/Materials | Entered Garrison 1413 | -8/Garrison | Garrison Relay disabled 1427 | -8/Garrison | Triggered checkpoint 1491 | -8/Garrison | Triggered checkpoint 1598 | -8/Garrison | Lost 8 parts (1p3n4w) 1683 | -8/Garrison | Triggered checkpoint 1729 | -8/Garrison | Triggered checkpoint 1946 | -8/Garrison | Core integrity fell below 50% 2015 | -8/Garrison | Lost 7 parts (2p2n3w) 2151 | -8/Garrison | Triggered checkpoint 2151 | -8/Garrison | Discovered new exit (range 15) 2304 | -8/Garrison | Build established: Scavenger-Mutant 2309 | -8/Garrison | Triggered checkpoint 2332 | -8/Garrison | Garrison Relay disabled 2512 | -8/Garrison | Discovered new exit (range 13) 2632 | -8/Garrison | Phase Generator disabled 2765 | -8/Garrison | Triggered checkpoint 2803 | -8/Garrison | Installed Relay Interface Framework 2912 | -8/Garrison | Expanded RIF knowledge: Watcher Feeds 2942 | -8/Garrison | Core integrity fell below 20% 2970 | -8/Garrison | Destroyed by Y-45 Defender with Beam Rifle Last Messages --------------- 02870_ An alarm sounds. 02882_ Detecting nearby RIF Installer. 02905_ Y-45 Defender springs to life. 02905_ Particle Gun destroyed. Initiating installation procedure... 02912_ Expanded RIF knowledge: Watcher Feeds. 02914_ Kicked Y-45 Defender out of the way. 02918_ Kicked Y-45 Defender. 02919_ System corrupted: Energy discharge (-82). 02919_ Aluminum Leg destroyed. 02920_ Kicked Y-45 Defender. 02925_ Critical hit (Burn: +37). 02925_ Kicked Y-45 Defender. 02928_ Aluminum Leg destroyed. 02930_ Slammed into Y-45 Defender. 02934_ Hrd. Medium Armor Plating destroyed. 02939_ MUGIYUQIUFUDA:BLDL<>DZ 02941_ Imp. Ion Engine destroyed. 02963_ Imp. Heat Sink destroyed. 02969_ System corrupted: Matter fused (-10). Map ----- +----------------------------------------------------+ | ???????????????????# "#???????????????# # # | | ???????????????????# T#???????????????# ### | | ???????????????????#""#???????????????#???# | | ???????????????????####???????????????????# | | ??????????????????????????????????????????# | | ??????????????????????????????????????????# | | ??????????????????????????????????????????# | | ??????????????????????????????????????????# | | ??????????????????????????????????????????# | | ????????????????????????????????????????### | | ????????????????????????????????????????# | | ????????????????????????????????????????# | | ????????????????????????????????????????# | | ????????????????????????????????????????# | | ????????????????????????????????????????### | | ????????????????????????#######???????????# | | ????????????????????????#"""" ######## ##?# | | ????????????????????????#" | | ????????????????????????#"""" ## ########?# | | ????????????????????????########!#????????# | | ???????????????????????????????#%#????????? | | ???????????????#######?????????#!##???????? | | ???????????????#"""""#?????????# #??###??? | | ??????????????### ############%##??# ??? | | ??????????????# #???# #??? | | ??????????????####@####### ### #???# #??? | | ?????????????????# #?????# #?#[#???# #??? | | ?????????????????# #?????## ##?# #???# #??? | | ?????????????????# #??????# #??#=##### #### | | ????????????????## ##?????# #### [= | | ????????????????#! !#?????# !% %[ | | ????????????????#! !#?????####### ###+#### | | ????????????????#! !#???????????# #?# #??? | | ????????????????#YY!#???????????# #?# #### | | ????????????????## ##???????????# ###=# | | ?????????????????# #????????????# =% | | ?????????????????# #????????????# ###* # | | ?????????????????# #????????????# ### # | | ?????????????????# #????????????# ## | | ?????????????????# #????????????# ### | | ?????????????????# #???????????? ## | | ?????????????????# #????????????< ## | | ??????????????####%####????????? #### | | ??????????????# ^%% #?????????###??# | | ??????????????###"%"###??????????????# | | ????????????????#" "#????????????????## | | ????????????????#" "#?????????????????## | | ????????????????#"""#??????????????????### | | ????????????????#####????????????????????## | | ??????????????????????????????????????????? | +----------------------------------------------------+ Best States ------------- Heat Dissipation 45 Energy Generation 14 Energy Capacity 265 Matter Stores 300 Matter Capacity 300 Sight Range 16 Terrain Scan Density 10 Armor Coverage 225 Evasion (%) 55 Recoil Reduction 4 Item Schematics ----------------- None Robot Schematics ------------------ None Fabricated ------------ Nothing Alien Tech Used ----------------- None Achievements -------------- Let's See Who's Tougher Challenges ------------ None Game ------ Seed SeismicCooledReconfigurator Manual? 0 Play Time 00:25:20 Cumulative 2.4 hours Start 2024.04.14 @ 23:07:41 End 2024.04.15 @ 11:02:03 Sessions 3 Manual Loads 0 Difficulty Rogue Special Mode None Game No. 3 Rogue 3 Adventurer 0 Explorer 0 Win Type - Total 0 Types 0/0/0/0/0/0/0/0/0 Lore% 6 Gallery% 9 Achievement% 14 Wizard Run 0 Options --------- Layout 0 ASCII 0 Keyboard 1 Movement Numpad Keybinds 0 Fullscreen 1 Font 24/X11 Map View 76x50 Zoom Use 0% Tactical HUD 1 Map Filters NONE Filters NONE Steam 1 RUN: 96c1e492-4ca2-4629-8f33-3e021241547c